bitfinex-derivatives/quotes_BTCF0:USTF0_20250703
["timestamp","ask_amount","ask_price","bid_price","bid_amount"]
[1751551602596,0.21128693,110540.0,110530.0,0.6897]
[1751551602808,0.67771337,110540.0,110530.0,0.3]
[1751551603018,0.1808666,110530.0,110520.0,0.14660207]
[1751551603203,0.64729304,110530.0,110520.0,0.28660207]
[1751551603402,0.1808993,110510.0,110500.0,0.01608771]
[1751551603607,0.56982574,110510.0,110500.0,0.33608771]
[1751551603905,0.1809484,110480.0,110470.0,0.0595744]
[1751551604104,0.2198484,110480.0,110470.0,0.3295744]
[1751551604309,0.2584484,110480.0,110470.0,0.5982744]
[1751551604702,0.64737484,110480.0,110470.0,0.2882744]
[1751551605010,0.2584484,110480.0,110470.0,0.6582744]
[1751551605506,0.2584484,110480.0,110470.0,0.7035744]
[1751551605810,0.2584484,110480.0,110470.0,0.6635744]
[1751551606007,0.2584484,110480.0,110470.0,0.3335744]
[1751551606204,0.64737484,110480.0,110470.0,0.3335744]
[1751551606804,0.64737484,110480.0,110470.0,0.2922744]
[1751551607004,0.64737484,110480.0,110470.0,0.2882744]
[1751551607203,0.64737484,110480.0,110470.0,0.2892744]
[1751551607412,1.53157484,110480.0,110470.0,0.2892744]
[1751551607604,1.53157484,110480.0,110470.0,0.28281036]
[1751551607800,1.57157484,110480.0,110470.0,0.28281036]
[1751551608408,0.2714853,110460.0,110440.0,0.7595113]
[1751551608612,0.0904943,110460.0,110440.0,0.8995113]
[1751551608803,0.3541365,110460.0,110450.0,0.041]
[1751551609002,0.75725344,110460.0,110450.0,0.29]
[1751551609207,0.75725344,110460.0,110440.0,0.0926771]
[1751551609208,0.2715024,110450.0,110440.0,0.0926771]
[1751551609398,0.181014,110440.0,110430.0,0.00181102]
[1751551609600,0.27320756,110440.0,110430.0,0.32181102]
[1751551609908,1.15244756,110440.0,110430.0,0.32181102]
[1751551610097,1.541374,110440.0,110430.0,0.32181102]
[1751551610301,1.15244756,110440.0,110430.0,0.32181102]
[1751551610813,1.541374,110440.0,110430.0,0.32181102]
[1751551611699,1.15244756,110440.0,110430.0,0.32181102]
[1751551611904,1.541374,110440.0,110430.0,0.32181102]
[1751551612705,0.1810468,110420.0,110410.0,0.01469349]
[1751551612903,1.58047518,110420.0,110410.0,0.07]
[1751551613103,1.69597518,110420.0,110390.0,0.01680322]
[1751551613306,0.57000604,110400.0,110390.0,0.32680322]
[1751551614309,1.45448604,110400.0,110390.0,0.32680322]
[1751551614498,1.45448604,110400.0,110390.0,0.31181168]
[1751551614899,1.45448604,110400.0,110390.0,0.31481168]
[1751551615310,0.64129724,110400.0,110390.0,0.31481168]
[1751551615604,1.3838108,110400.0,110390.0,0.35551168]
[1751551615811,1.52577724,110400.0,110390.0,0.35551168]
[1751551616206,1.52577724,110400.0,110390.0,0.31481168]
[1751551616406,1.52477724,110400.0,110390.0,0.08000008]
[1751551616806,1.52477724,110400.0,110390.0,0.04770078]
[1751551617004,1.52477724,110400.0,110360.0,0.01]
[1751551617005,0.1811288,110370.0,110360.0,0.01]
[1751551617307,0.1811453,110360.0,110350.0,0.0381798]
[1751551617607,0.1811781,110340.0,110330.0,0.09226574]
[1751551617808,1.45454454,110340.0,110330.0,0.34007191]
[1751551618004,0.1811781,110340.0,110330.0,0.34007191]
[1751551618216,1.0637381,110340.0,110330.0,0.38127191]
[1751551618512,0.1811781,110340.0,110330.0,0.95315881]
[1751551618715,0.2717578,110350.0,110330.0,0.99845701]
[1751551618910,0.66068424,110350.0,110340.0,0.0819]
[1751551619107,0.66068424,110350.0,110340.0,0.41581721]
[1751551619108,0.65768424,110350.0,110340.0,0.41581721]
[1751551619312,0.65768424,110350.0,110340.0,0.37511721]
[1751551620513,0.2697578,110350.0,110340.0,0.37511721]
[1751551620714,0.65868424,110350.0,110340.0,0.37511721]
[1751551621317,0.1821729,110350.0,110340.0,0.88629531]
[1751551621507,0.1821729,110350.0,110340.0,0.59599531]
[1751551621705,0.57309934,110350.0,110340.0,0.41481721]
[1751551621915,0.57309934,110350.0,110340.0,0.33391721]
[1751551622112,0.003,110350.0,110340.0,0.86509531]
[1751551622417,0.003,110350.0,110340.0,1.12654331]
[1751551622618,0.1841617,110350.0,110340.0,0.94514325]
[1751551623115,0.57308814,110350.0,110340.0,0.72396515]
[1751551623315,0.57308814,110350.0,110340.0,0.37426524]
[1751551623618,0.60818814,110350.0,110340.0,0.36364569]
[1751551623807,0.61018814,110350.0,110340.0,0.36364569]
[1751551624007,0.1831617,110350.0,110340.0,0.92482379]
[1751551624208,0.002,110350.0,110340.0,0.97494265]
[1751551624413,0.002,110350.0,110340.0,1.36386935]
[1751551624606,1.26695142,110380.0,110370.0,0.1811289]
[1751551624807,0.1830831,110400.0,110390.0,0.1810961]
[1751551625009,0.1830797,110400.0,110390.0,0.8110961]
[1751551625210,0.002,110400.0,110390.0,0.8904961]
[1751551625620,0.1830796,110400.0,110390.0,0.7194]
[1751551625823,0.002,110400.0,110390.0,0.860496]
[1751551626012,0.1830796,110400.0,110390.0,0.540496]
[1751551626521,0.1840796,110400.0,110390.0,0.910496]
[1751551626715,0.1840796,110400.0,110390.0,0.860496]
[1751551626915,0.1830796,110400.0,110390.0,0.860496]
[1751551627116,0.1850796,110400.0,110390.0,0.860496]
[1751551627615,0.57400604,110400.0,110390.0,0.28]
[1751551627820,0.65080604,110400.0,110390.0,0.8110961]
[1751551628223,0.65080604,110400.0,110390.0,0.8289961]
[1751551628520,0.65080604,110400.0,110390.0,0.4989961]
[1751551629024,0.3169255,110390.0,110380.0,0.13]
[1751551629215,0.78265194,110390.0,110380.0,0.29]
[1751551629920,0.1811125,110380.0,110370.0,0.02643606]
[1751551630117,1.53455894,110380.0,110370.0,0.03022512]
[1751551630312,0.1801453,110360.0,110350.0,0.0392]
[1751551630511,0.1801453,110360.0,110350.0,0.50364892]
[1751551630719,0.1801453,110360.0,110350.0,0.5284617]
[1751551630911,0.1801453,110360.0,110350.0,0.54168078]
[1751551631224,0.56907174,110360.0,110350.0,0.50358088]
[1751551631417,0.1801453,110360.0,110350.0,0.50358088]
[1751551631724,0.1801453,110360.0,110350.0,0.54168088]
[1751551631923,0.25413206,110360.0,110350.0,0.54168088]
[1751551632120,0.29593206,110360.0,110350.0,0.54171615]
[1751551632320,0.25513206,110360.0,110350.0,0.54171615]
[1751551632522,0.1811453,110360.0,110350.0,0.85171615]
[1751551632721,0.1811453,110360.0,110350.0,0.8384618]
[1751551632922,0.1811453,110360.0,110350.0,0.5284618]
[1751551633122,0.1811453,110360.0,110350.0,0.54168859]
[1751551634223,0.01471896,110370.0,110350.0,1.24068523]
[1751551634418,0.2263954,110380.0,110370.0,0.2716707]
[1751551634618,0.2263954,110380.0,110370.0,0.6610707]
[1751551634814,0.61532184,110380.0,110370.0,0.5705125]
[1751551635212,0.65272184,110380.0,110370.0,0.5705125]
[1751551635419,0.2637954,110380.0,110370.0,0.5705125]
[1751551635723,0.2263954,110380.0,110370.0,0.5705125]
[1751551637422,0.184117,110380.0,110370.0,0.9205125]
[1751551637623,0.184117,110380.0,110370.0,0.5705125]
[1751551637823,0.185117,110380.0,110370.0,0.5705125]
[1751551638018,0.183117,110380.0,110370.0,0.8905125]
[1751551638219,0.002,110380.0,110370.0,1.27943894]
[1751551638628,0.001,110380.0,110370.0,1.27943894]
[1751551639021,0.1821125,110380.0,110370.0,0.8905125]
[1751551639220,0.1821125,110380.0,110370.0,0.6505125]
[1751551639430,0.1821125,110380.0,110370.0,0.9505125]
[1751551639624,0.1821125,110380.0,110370.0,0.9525125]
[1751551640234,0.001,110380.0,110370.0,0.9525125]
[1751551640727,0.1811125,110380.0,110370.0,0.9535125]
[1751551641022,0.2660824,110390.0,110380.0,0.1811125]
[1751551641227,0.2660824,110390.0,110380.0,0.5833125]
[1751551641632,0.2660824,110390.0,110380.0,0.5423125]
[1751551641823,0.69370884,110390.0,110380.0,0.27]
[1751551642025,0.69370884,110390.0,110380.0,0.4511125]
[1751551642424,0.69370884,110390.0,110380.0,0.4649733]
[1751551642835,0.76616792,110390.0,110380.0,0.4649733]
[1751551643434,0.76816792,110390.0,110380.0,0.4511125]
[1751551643938,0.76916792,110390.0,110380.0,0.4511125]
[1751551644833,0.38224148,110390.0,110380.0,0.4511125]
[1751551645028,0.25855518,110390.0,110380.0,0.4921125]
[1751551645235,0.25855518,110390.0,110380.0,0.5307125]
[1751551645531,0.25855518,110390.0,110380.0,0.4921125]
[1751551645731,0.72878162,110390.0,110380.0,0.4511125]
[1751551647033,0.72878162,110390.0,110380.0,0.4211125]
[1751551647632,0.72778162,110390.0,110380.0,0.24]
[1751551647828,0.72778162,110390.0,110380.0,0.4211125]
[1751551648028,0.72778162,110390.0,110380.0,0.24]
[1751551648630,0.72678162,110390.0,110380.0,0.24]
[1751551648832,0.72678162,110390.0,110380.0,0.4211125]
[1751551650034,1.85838162,110390.0,110380.0,0.4211125]
[1751551651338,1.47145518,110390.0,110380.0,0.4211125]
[1751551651537,1.86034162,110390.0,110380.0,0.4211125]
[1751551651930,1.85932522,110390.0,110380.0,0.24]
[1751551652431,0.1811126,110380.0,110370.0,0.6264058]
[1751551652625,0.65022264,110380.0,110370.0,0.5264058]
[1751551653036,0.2623126,110380.0,110370.0,0.5264058]
[1751551653338,0.65022264,110380.0,110370.0,0.5264058]
[1751551653533,0.46536912,110390.0,110380.0,0.1811126]
[1751551653734,0.07745908,110390.0,110380.0,1.20902264]
[1751551654038,0.25855528,110390.0,110380.0,1.32872264]
[1751551654235,0.25855528,110390.0,110380.0,0.9408126]
[1751551654436,0.25855528,110390.0,110380.0,0.7008126]
[1751551654636,0.25555528,110390.0,110380.0,0.7008126]
[1751551654936,0.07245908,110390.0,110380.0,0.9908126]
[1751551655138,0.57100364,110400.0,110390.0,0.1810962]
[1751551655326,0.57100364,110400.0,110390.0,0.5406962]
[1751551656031,0.68570782,110400.0,110390.0,0.5406962]
[1751551656431,0.68570782,110400.0,110390.0,0.5014962]
[1751551656639,0.1810962,110390.0,110380.0,0.001]
[1751551656831,1.537135,110390.0,110380.0,0.271]
[1751551657233,1.537135,110390.0,110380.0,0.27]
[1751551657438,0.1811126,110380.0,110370.0,0.6715277]
[1751551657639,0.6491114,110380.0,110370.0,0.53537941]
[1751551658933,0.2624126,110380.0,110370.0,0.53537941]
[1751551659129,0.002,110380.0,110370.0,0.89778424]
[1751551659334,0.1831125,110380.0,110370.0,0.89778424]
[1751551659734,0.1831125,110380.0,110370.0,0.89778703]
[1751551659935,0.1831125,110380.0,110370.0,0.57778703]
[1751551660340,0.5718113,110380.0,110370.0,0.57778703]
[1751551660732,0.6097113,110380.0,110370.0,0.53638703]
[1751551660938,0.6514113,110380.0,110370.0,0.53638703]
[1751551661639,0.6514113,110380.0,110370.0,0.49598703]
[1751551664136,1.5357313,110380.0,110370.0,0.49598703]
[1751551665541,1.5357313,110380.0,110370.0,0.31485933]
[1751551665739,1.5357313,110380.0,110370.0,7e-08]
[1751551666039,0.181129,110370.0,110360.0,0.03541066]
[1751551666245,0.1811454,110360.0,110350.0,0.08852665]
[1751551666440,0.1811618,110350.0,110340.0,0.05333997]
[1751551666635,0.6122606,110350.0,110340.0,0.05333997]
[1751551666838,0.6122606,110350.0,110340.0,0.02570877]
[1751551667240,0.86234681,110350.0,110310.0,0.00181302]
[1751551667442,0.58461454,110320.0,110310.0,0.31181302]
[1751551667646,1.70976211,110320.0,110310.0,0.02181302]
[1751551667943,1.75216211,110320.0,110310.0,0.33181302]
[1751551668139,0.17531867,110320.0,110310.0,0.51304052]
[1751551668341,0.17531867,110320.0,110310.0,0.59674052]
[1751551668646,0.56401747,110320.0,110310.0,0.59674049]
[1751551668840,0.60641747,110320.0,110310.0,0.33181299]
[1751551669040,0.60641747,110320.0,110310.0,0.51304049]
[1751551669444,0.46129084,110320.0,110310.0,0.55734049]
[1751551669648,0.2229999,110330.0,110320.0,0.1812111]
[1751551669842,0.19600456,110340.0,110330.0,0.1811947]
[1751551670042,0.19600456,110340.0,110330.0,0.5882947]
[1751551670443,0.19600456,110340.0,110330.0,0.9382947]
[1751551670642,0.19600456,110340.0,110330.0,0.5882947]
[1751551670845,0.58470336,110340.0,110330.0,0.5882947]
[1751551671043,0.58670336,110340.0,110330.0,0.5882947]
[1751551671344,0.58670336,110340.0,110320.0,0.6412008]
[1751551671345,0.44731086,110340.0,110320.0,0.01]
[1751551671650,0.44731086,110340.0,110320.0,0.28]
[1751551671651,1.7208014,110330.0,110320.0,0.28]
[1751551671841,0.84123836,110330.0,110320.0,0.1812111]
[1751551672041,0.84123836,110330.0,110320.0,0.4855111]
[1751551672042,0.36543736,110330.0,110320.0,0.4855111]
[1751551672246,0.36543736,110330.0,110320.0,0.5255111]
[1751551672441,0.75413616,110330.0,110320.0,0.5255111]
[1751551672642,0.75411434,110330.0,110320.0,0.5255111]
[1751551673047,0.27481204,110330.0,110320.0,0.5255111]
[1751551673250,1.42079046,110340.0,110330.0,0.1811947]
[1751551673450,1.44338131,110340.0,110330.0,0.5550947]
[1751551673640,0.26488431,110340.0,110330.0,0.5550947]
[1751551675049,0.26388431,110340.0,110330.0,0.5550947]
[1751551675250,0.65458311,110340.0,110330.0,0.5550947]
[1751551675752,0.63199226,110340.0,110330.0,0.5550947]
[1751551676143,0.6575519,110340.0,110330.0,0.5550947]
[1751551676346,0.6555519,110340.0,110330.0,0.5550947]
[1751551676547,0.72726247,110340.0,110330.0,0.5550947]
[1751551676748,0.72626247,110340.0,110330.0,0.5550947]
[1751551677255,0.33556367,110340.0,110330.0,0.5550947]
[1751551677441,0.72626247,110340.0,110330.0,0.5550947]
[1751551678048,0.72581409,110340.0,110330.0,0.5550947]
[1751551678349,0.72481409,110340.0,110330.0,0.5550947]
[1751551678652,0.72581409,110340.0,110330.0,0.56867143]
[1751551678854,0.72681409,110340.0,110330.0,0.56867143]
[1751551679351,0.27170083,110340.0,110330.0,0.93867143]
[1751551679553,0.09052263,110340.0,110330.0,0.97147143]
[1751551679941,0.1712868,110360.0,110350.0,0.1811618]
[1751551679942,0.69928322,110360.0,110350.0,0.1811618]
[1751551680147,0.76692038,110360.0,110350.0,0.4611618]
[1751551680449,0.72163068,110360.0,110350.0,0.5465618]
[1751551680749,0.2743821,110360.0,110350.0,0.9265618]
[1751551680954,0.66263252,110360.0,110350.0,0.5465618]
[1751551682157,1.05388294,110360.0,110350.0,0.28]
[1751551682342,1.13788294,110360.0,110350.0,0.28]
[1751551682952,0.95672564,110360.0,110350.0,0.07]
[1751551683151,1.00201334,110360.0,110330.0,0.310192]
[1751551683351,0.56942872,110340.0,110330.0,0.49858198]
[1751551683750,0.61227702,110340.0,110330.0,0.49858198]
[1751551685046,0.63463283,110340.0,110330.0,0.49858198]
[1751551687557,0.63463283,110340.0,110330.0,0.49958198]
[1751551688056,0.63464663,110340.0,110330.0,0.001]
[1751551688253,0.67694663,110340.0,110330.0,0.301]
[1751551688455,0.1812111,110320.0,110310.0,0.31413819]
[1751551688654,0.57040982,110320.0,110310.0,0.48688464]
[1751551688954,0.65400982,110320.0,110310.0,0.30567074]
[1751551689258,0.90076982,110320.0,110310.0,0.30567074]
[1751551689459,0.94446982,110320.0,110310.0,0.01567074]
[1751551689659,0.94446982,110320.0,110310.0,0.30567074]
[1751551689848,0.98985872,110320.0,110310.0,0.27]
[1751551690047,0.09062,110310.0,110290.0,0.1311291]
[1751551690254,0.61274272,110300.0,110290.0,0.3743958]
[1751551690557,0.65404272,110300.0,110290.0,0.3338958]
[1751551690754,0.65304272,110300.0,110290.0,0.3338958]
[1751551691153,0.65304272,110300.0,110290.0,0.0138958]
[1751551691356,0.65304272,110300.0,110290.0,0.4951562]
[1751551691558,0.65304272,110300.0,110290.0,0.4981562]
[1751551692056,0.6423528,110300.0,110290.0,0.4981562]
[1751551692256,0.1812305,110310.0,110300.0,0.181244]
[1751551692456,0.2718464,110310.0,110300.0,0.6241398]
[1751551692760,0.66104512,110310.0,110300.0,0.5362398]
[1751551692964,0.70564512,110310.0,110300.0,0.5362398]
[1751551693156,0.70564512,110310.0,110300.0,0.3549958]
[1751551693356,0.70564512,110310.0,110300.0,0.4951398]
[1751551693556,0.73296641,110310.0,110300.0,0.4951398]
[1751551693958,1.63584512,110310.0,110300.0,0.4951398]
[1751551694162,1.63784512,110310.0,110300.0,0.4951398]
[1751551694355,1.66217694,110310.0,110300.0,0.4951398]
[1751551694759,1.66994501,110310.0,110300.0,0.2938958]
[1751551694964,1.66894501,110310.0,110300.0,0.0438958]
[1751551695160,1.71344501,110310.0,110300.0,0.0138958]
[1751551695366,1.71044501,110310.0,110300.0,0.0138958]
[1751551695562,1.71244501,110310.0,110300.0,0.0138958]
[1751551696866,0.1812604,110290.0,110280.0,0.3140768]
[1751551697065,1.45441912,110290.0,110280.0,0.5381768]
[1751551697260,1.49611912,110290.0,110280.0,0.4934768]
[1751551697460,1.54171912,110290.0,110280.0,0.4512768]
[1751551698267,1.54171912,110290.0,110280.0,0.4532768]
[1751551698760,1.54171912,110290.0,110280.0,0.002]
[1751551698960,1.54171912,110290.0,110280.0,0.132]
[1751551699161,1.54171912,110290.0,110280.0,0.1832768]
[1751551699361,1.74299912,110290.0,110280.0,0.4952768]
[1751551699557,0.61215912,110290.0,110280.0,0.5798768]
[1751551699867,0.61215912,110290.0,110280.0,0.5678768]
[1751551700057,0.1812604,110290.0,110280.0,0.5678768]
[1751551700257,1.15119733,110300.0,110290.0,0.1812604]
[1751551700466,1.17552113,110300.0,110290.0,0.6119604]
[1751551700764,0.11030553,110300.0,110290.0,0.6819604]
[1751551700969,0.19598343,110320.0,110310.0,0.1812275]
[1751551701164,0.01476023,110320.0,110310.0,0.4412275]
[1751551701364,0.19597133,110320.0,110310.0,0.4833275]
[1751551701564,0.58517005,110320.0,110310.0,0.4833275]
[1751551701865,0.58517005,110320.0,110310.0,0.49706258]
[1751551702467,0.58717005,110320.0,110310.0,0.49706258]
[1751551702662,0.58717005,110320.0,110310.0,0.45496258]
[1751551702663,0.63167005,110320.0,110310.0,0.45496258]
[1751551702864,0.67637005,110320.0,110310.0,0.45496258]
[1751551703265,0.67437005,110320.0,110310.0,0.01373508]
[1751551703462,0.67737005,110320.0,110310.0,0.31373508]
[1751551703865,1.06710881,110320.0,110310.0,0.31373508]
[1751551705567,1.06710881,110320.0,110310.0,0.02373508]
[1751551706069,1.24840481,110320.0,110310.0,0.01373508]
[1751551706669,1.24840481,110320.0,110310.0,0.32373508]
[1751551706971,1.24840481,110320.0,110310.0,0.01373508]
[1751551707572,0.181244,110300.0,110290.0,0.4069771]
[1751551707871,1.45355274,110300.0,110290.0,0.72095105]
[1751551709064,1.45355274,110300.0,110290.0,0.67563655]
[1751551709860,1.45355274,110300.0,110290.0,0.63032205]
[1751551710061,1.45355274,110300.0,110290.0,0.31397395]
[1751551710261,1.54145274,110300.0,110290.0,0.31397395]
[1751551710466,1.54145274,110300.0,110290.0,0.02397395]
[1751551710667,1.6151962,110300.0,110290.0,0.01397395]
[1751551711070,1.6151962,110300.0,110270.0,0.13611365]
[1751551711071,0.1812768,110280.0,110270.0,0.00181365]
[1751551711267,0.1812768,110280.0,110240.0,0.317974]
[1751551711268,0.1813262,110250.0,110240.0,0.317974]
[1751551711473,0.56389936,110250.0,110240.0,0.597974]
[1751551711670,1.69441936,110250.0,110240.0,0.5526385]
[1751551711974,0.17249821,110240.0,110230.0,0.30149851]
[1751551712169,0.56096695,110240.0,110230.0,0.67599851]
[1751551712773,0.55796695,110240.0,110230.0,0.67599851]
[1751551713276,0.55496695,110240.0,110230.0,0.67799851]
[1751551713978,1.46272582,110240.0,110230.0,0.67799851]
[1751551714169,1.53624774,110240.0,110230.0,0.69417302]
[1751551714368,1.51228887,110240.0,110230.0,0.69417302]
[1751551715068,0.07352192,110240.0,110230.0,0.69417302]
[1751551715274,0.1813426,110240.0,110230.0,1.11482876]
[1751551715477,0.1813426,110240.0,110230.0,0.78482876]
[1751551715677,1.54419624,110250.0,110240.0,0.1813426]
[1751551715880,1.54419624,110250.0,110240.0,0.55039665]
[1751551716478,1.1557275,110250.0,110240.0,0.55039665]
[1751551716775,1.54519624,110250.0,110240.0,0.55039665]
[1751551716974,0.001,110250.0,110240.0,0.55039665]
[1751551717171,0.1823262,110250.0,110240.0,0.55039665]
[1751551717367,0.57079494,110250.0,110240.0,0.55039665]
[1751551718173,0.57179494,110250.0,110240.0,0.55039665]
[1751551719577,0.002,110250.0,110240.0,0.86039665]
[1751551719774,0.1833262,110250.0,110240.0,0.86039665]
[1751551719969,0.1833262,110250.0,110240.0,0.5362426]
[1751551720170,0.1833262,110250.0,110240.0,0.55038525]
[1751551720369,0.57179494,110250.0,110240.0,0.36904265]
[1751551720568,0.57179494,110250.0,110240.0,0.55038515]
[1751551720768,0.57179494,110250.0,110240.0,0.01414265]
[1751551720769,1.93308368,110250.0,110240.0,0.01414265]
[1751551721072,1.54461494,110250.0,110240.0,0.01414265]
[1751551721673,1.93308368,110250.0,110240.0,0.01414265]
[1751551723182,1.93308368,110250.0,110240.0,0.02831788]
[1751551723488,2.13804793,110250.0,110240.0,8e-08]
[1751551723671,0.1813426,110240.0,110230.0,0.00181431]
[1751551723983,1.31560833,110240.0,110230.0,0.00181431]
[1751551724585,1.06892833,110240.0,110230.0,0.27181431]
[1751551724782,1.76837959,110240.0,110230.0,0.02181431]
[1751551724974,0.63805959,110240.0,110230.0,0.48317331]
[1751551725178,1.72371959,110240.0,110230.0,0.56897331]
[1751551725379,1.72371959,110240.0,110230.0,0.38761431]
[1751551725683,1.72371959,110240.0,110230.0,0.30181431]
[1751551725881,2.20518833,110240.0,110230.0,0.30181431]
[1751551726077,0.2721052,110210.0,110200.0,0.1813906]
[1751551726281,0.2711052,110210.0,110200.0,0.5971906]
[1751551726476,0.65957394,110210.0,110200.0,0.4158]
[1751551726681,0.2711052,110210.0,110200.0,0.5972084]
[1751551727072,0.65957394,110210.0,110200.0,0.5972084]
[1751551727687,0.65957394,110210.0,110200.0,0.5952084]
[1751551727982,0.66157394,110210.0,110200.0,0.5932084]
[1751551728175,0.66257394,110210.0,110200.0,0.5932084]
[1751551728376,0.184406,110210.0,110200.0,0.5932084]
[1751551728584,0.184392,110210.0,110200.0,0.9632084]
[1751551728886,0.57286074,110210.0,110200.0,0.5932084]
[1751551729086,0.003,110210.0,110200.0,0.5932084]
[1751551729279,0.003,110210.0,110200.0,0.9332084]
[1751551729477,0.184392,110210.0,110200.0,0.9332084]
[1751551729875,0.57286074,110210.0,110200.0,0.9632084]
[1751551730285,0.57186074,110210.0,110200.0,0.9632084]
[1751551730490,0.57186074,110210.0,110200.0,0.5932084]
[1751551730882,1.45550074,110210.0,110200.0,0.5932084]
[1751551731078,1.54300074,110210.0,110200.0,0.3722]
[1751551731485,1.54300074,110210.0,110200.0,0.33]
[1751551731887,1.93146948,110210.0,110200.0,0.33]
[1751551732189,2.06752168,110210.0,110200.0,0.01]
[1751551732388,0.3174721,110200.0,110190.0,0.44]
[1751551732591,0.3174721,110200.0,110190.0,0.3]
[1751551732592,1.07965711,110200.0,110190.0,0.3]
[1751551732791,0.1814249,110190.0,110180.0,0.01]
[1751551733087,0.1814413,110180.0,110170.0,0.15257959]
[1751551733294,0.61361004,110180.0,110170.0,0.29667959]
[1751551733586,0.6458101,110180.0,110170.0,0.29667959]
[1751551733793,0.1814578,110170.0,110160.0,0.2824743]
[1751551733990,1.78894654,110170.0,110160.0,0.5424743]
[1751551734391,0.1814578,110170.0,110160.0,0.5424743]
[1751551735291,0.56992654,110170.0,110160.0,0.5424743]
[1751551735591,0.56992654,110170.0,110160.0,0.55665714]
[1751551735788,0.56992654,110170.0,110160.0,0.57084003]
[1751551735991,0.1814578,110170.0,110160.0,0.29836573]
[1751551736192,0.1814578,110170.0,110160.0,0.56814003]
[1751551736491,0.001,110170.0,110160.0,1.44815276]
[1751551736695,0.01514365,110190.0,110180.0,0.1814414]
[1751551736991,0.01514365,110190.0,110180.0,0.97810713]
[1751551737590,0.92221827,110210.0,110200.0,0.1814084]
[1751551737789,0.01484573,110210.0,110200.0,0.80977413]
[1751551737989,0.19623773,110210.0,110200.0,0.88389124]
[1751551738199,0.01484573,110210.0,110200.0,0.88389124]
[1751551738395,0.56986074,110210.0,110200.0,0.49559124]
[1751551738701,0.56986074,110210.0,110200.0,0.89269412]
[1751551738901,0.56986074,110210.0,110200.0,0.59719412]
[1751551739200,0.57186074,110210.0,110200.0,0.59719412]
[1751551739400,0.002,110210.0,110200.0,0.59719412]
[1751551739599,0.1833919,110210.0,110200.0,0.58389124]
[1751551739793,0.57186064,110210.0,110200.0,0.58389124]
[1751551739994,0.57186064,110210.0,110200.0,0.62819124]
[1751551740396,0.57586064,110210.0,110200.0,0.62819124]
[1751551740701,0.6015349,110210.0,110200.0,0.62819124]
[1751551740899,0.6015349,110210.0,110200.0,0.01418284]
[1751551740900,1.4790549,110210.0,110200.0,0.01418284]
[1751551741103,1.5236549,110210.0,110200.0,0.31418284]
[1751551741297,1.5670549,110210.0,110200.0,0.31418284]
[1751551741498,1.4810549,110210.0,110200.0,0.49559124]
[1751551741706,1.4810549,110210.0,110200.0,0.58139124]
[1751551742099,1.47985128,110210.0,110200.0,0.39998284]
[1751551742400,1.52605128,110210.0,110200.0,0.39998284]
[1751551742702,1.56955128,110210.0,110200.0,0.01418284]
[1751551742892,1.18108254,110210.0,110200.0,0.32418284]
[1751551743098,1.56955128,110210.0,110200.0,0.32418284]
[1751551744007,0.29756254,110210.0,110200.0,0.32418284]
[1751551744201,1.81623128,110210.0,110200.0,0.32418284]
[1751551744799,0.20986254,110210.0,110200.0,0.50559124]
[1751551745004,1.72853128,110210.0,110200.0,0.59239124]
[1751551745403,1.72753128,110210.0,110200.0,0.59239124]
[1751551745699,1.72953128,110210.0,110200.0,0.41098284]
[1751551746393,1.81863128,110210.0,110200.0,0.41098284]
[1751551746593,1.81863128,110210.0,110200.0,0.32418284]
[1751551748308,1.81863128,110210.0,110200.0,0.02418284]
[1751551748706,1.81863128,110210.0,110200.0,0.29418284]
[1751551749095,0.68843128,110210.0,110200.0,0.29418284]
[1751551749301,1.81815128,110210.0,110200.0,0.29388897]
[1751551749502,1.81815128,110210.0,110200.0,0.38218897]
[1751551749711,1.81815128,110210.0,110200.0,0.56359737]
[1751551749908,1.81815128,110210.0,110200.0,0.38218897]
[1751551750103,1.81815128,110210.0,110200.0,0.56359737]
[1751551750305,0.02947064,110210.0,110200.0,0.93359737]
[1751551750501,0.21086254,110210.0,110200.0,1.32206611]
[1751551750701,0.02947064,110210.0,110200.0,0.93359737]
[1751551751309,0.02947064,110210.0,110200.0,1.32206611]
[1751551751512,1.16319664,110230.0,110220.0,0.1813755]
[1751551751808,0.28003664,110230.0,110220.0,0.54006447]
[1751551752004,0.28003664,110230.0,110220.0,0.63216447]
[1751551752204,0.66850538,110230.0,110220.0,0.63218936]
[1751551752610,0.66850538,110230.0,110220.0,0.6182755]
[1751551752811,0.67678494,110230.0,110220.0,0.4369]
[1751551753007,0.67678494,110230.0,110220.0,0.3]
[1751551753313,0.1813755,110220.0,110210.0,0.1121]
[1751551753512,1.50620848,110220.0,110210.0,0.3]
[1751551753711,1.50620848,110220.0,110200.0,0.5041]
[1751551753712,0.0453501,110210.0,110200.0,0.01]
[1751551753911,0.2721196,110200.0,110190.0,0.02]
[1751551754212,0.1814249,110190.0,110180.0,0.02660362]
[1751551754411,1.58919364,110190.0,110180.0,0.03000199]
[1751551754602,1.58919364,110190.0,110180.0,0.09000199]
[1751551754804,1.64251788,110190.0,110180.0,0.07660362]
[1751551755005,1.58919364,110190.0,110180.0,0.07660362]
[1751551755202,1.66090035,110190.0,110180.0,0.14660362]
[1751551755401,1.64350396,110190.0,110180.0,0.14660362]
[1751551755913,1.64350396,110190.0,110180.0,0.14860362]
[1751551756309,1.64350396,110190.0,110180.0,0.28860362]
[1751551756511,1.89002396,110190.0,110180.0,0.28860362]
[1751551756711,1.89102396,110190.0,110180.0,0.28860362]
[1751551757014,1.89102396,110190.0,110180.0,0.32860362]
[1751551757514,1.89102396,110190.0,110180.0,0.01660362]
[1751551757716,1.89202396,110190.0,110180.0,0.08996948]
[1751551757913,0.76250396,110190.0,110180.0,0.46804502]
[1751551758112,1.70141364,110190.0,110180.0,0.46804502]
[1751551758306,1.70141364,110190.0,110180.0,0.55844502]
[1751551758511,1.70141364,110190.0,110180.0,0.37700362]
[1751551758905,1.79001364,110190.0,110180.0,0.55844492]
[1751551759305,1.79001364,110190.0,110180.0,0.28660362]
[1751551759718,1.79001364,110190.0,110180.0,0.46804492]
[1751551760012,1.79001364,110190.0,110180.0,0.55844492]
[1751551760413,1.79001364,110190.0,110180.0,0.28660362]
[1751551761511,1.79001364,110190.0,110180.0,0.29996762]
[1751551761914,1.79001364,110190.0,110180.0,0.48140892]
[1751551762119,1.79001364,110190.0,110180.0,0.28660362]
[1751551762314,1.79001364,110190.0,110180.0,0.29997374]
[1751551763309,1.79001364,110190.0,110180.0,0.28337012]
[1751551763514,1.81446531,110190.0,110180.0,0.28337012]
[1751551764511,1.81446531,110190.0,110180.0,0.02337012]
[1751551765414,0.73925563,110190.0,110180.0,0.29337012]
[1751551765610,1.81430531,110190.0,110180.0,0.33337012]
[1751551766016,1.86861563,110190.0,110180.0,0.33337012]
[1751551766210,1.42583657,110190.0,110180.0,0.51481142]
[1751551766415,1.81430531,110190.0,110180.0,0.51481142]
[1751551766617,1.81430531,110190.0,110180.0,0.55921142]
[1751551766814,1.72566531,110190.0,110180.0,0.55921142]